[Event "Early-Titled-Tuesday-Blitz-April-02-2024"]
[Site "Chess.com"]
[Date "2024.04.02"]
[Round "7"]
[White "DvaHrasta"]
[Black "Statham_01"]
[Result "1-0"]
[WhiteElo "2534"]
[BlackElo "2605"]
[TimeControl "180+1"]
[EndTime "9:18:08 PDT"]
[Termination "DvaHrasta won on time"]

1. c4 {[%clk 0:03:00.9]} 1... e5 {[%clk 0:03:00]} 2. g3 {[%clk 0:03:00.9]} 2...
Nf6 {[%clk 0:03:00.6]} 3. Bg2 {[%clk 0:03:01]} 3... c6 {[%clk 0:03:01.2]} 4. Nf3
{[%clk 0:02:59.6]} 4... e4 {[%clk 0:03:01.8]} 5. Nd4 {[%clk 0:02:59.9]} 5... d5
{[%clk 0:03:02.7]} 6. cxd5 {[%clk 0:03:00]} 6... Qxd5 {[%clk 0:03:03.6]} 7. e3
{[%clk 0:02:57.9]} 7... Bc5 {[%clk 0:03:00.4]} 8. Nc3 {[%clk 0:02:55.5]} 8...
Qe5 {[%clk 0:03:00.7]} 9. Nb3 {[%clk 0:02:55.3]} 9... Bd6 {[%clk 0:03:00.4]} 10.
O-O {[%clk 0:02:45.6]} 10... Bg4 {[%clk 0:02:59.9]} 11. f3 {[%clk 0:02:43.6]}
11... exf3 {[%clk 0:03:00.8]} 12. Bxf3 {[%clk 0:02:43.4]} 12... Qh5 {[%clk
0:03:01.4]} 13. Ne4 {[%clk 0:02:27.7]} 13... Nxe4 {[%clk 0:02:50.4]} 14. Bxg4
{[%clk 0:02:24.5]} 14... Qg5 {[%clk 0:02:31.2]} 15. Qf3 {[%clk 0:02:16.6]} 15...
Nf6 {[%clk 0:02:29.1]} 16. Bc8 {[%clk 0:02:13.1]} 16... Qb5 {[%clk 0:02:16.6]}
17. Nd4 {[%clk 0:02:07.5]} 17... Qb6 {[%clk 0:02:08]} 18. Nf5 {[%clk 0:02:04.7]}
18... Bf8 {[%clk 0:02:01.7]} 19. Qf4 {[%clk 0:02:00.1]} 19... Na6 {[%clk
0:01:45.4]} 20. Qe5+ {[%clk 0:01:45.6]} 20... Kd8 {[%clk 0:01:44.1]} 21. Nxg7
{[%clk 0:01:40.9]} 21... Bxg7 {[%clk 0:01:28.7]} 22. Rxf6 {[%clk 0:01:40.6]}
22... Bxf6 {[%clk 0:00:49.7]} 23. Qxf6+ {[%clk 0:01:39.3]} 23... Kc7 {[%clk
0:00:41.9]} 24. Qxh8 {[%clk 0:01:34.8]} 24... Rxc8 {[%clk 0:00:40.9]} 25. Qxh7
{[%clk 0:01:29.8]} 25... Qc5 {[%clk 0:00:33.7]} 26. a3 {[%clk 0:01:17.5]} 26...
Kb8 {[%clk 0:00:26.7]} 27. b4 {[%clk 0:01:14.9]} 27... Qe5 {[%clk 0:00:26.7]}
28. Rb1 {[%clk 0:01:12.3]} 28... Rh8 {[%clk 0:00:26.7]} 29. Bb2 {[%clk
0:01:07.3]} 29... Qxb2 {[%clk 0:00:23.4]} 30. Rxb2 {[%clk 0:01:07]} 30... Rxh7
{[%clk 0:00:23.5]} 31. Kg2 {[%clk 0:01:07.3]} 31... Nc7 {[%clk 0:00:22.9]} 32.
h4 {[%clk 0:01:03.7]} 32... Ne6 {[%clk 0:00:22]} 33. d4 {[%clk 0:00:59.6]} 33...
Kc7 {[%clk 0:00:22]} 34. b5 {[%clk 0:00:56.7]} 34... c5 {[%clk 0:00:18.9]} 35.
d5 {[%clk 0:00:52.7]} 35... Nf8 {[%clk 0:00:17]} 36. e4 {[%clk 0:00:51.2]} 36...
b6 {[%clk 0:00:15.9]} 37. Kf3 {[%clk 0:00:50]} 37... Kd6 {[%clk 0:00:14.1]} 38.
Kf4 {[%clk 0:00:44.7]} 38... Rh5 {[%clk 0:00:13.9]} 39. Rf2 {[%clk 0:00:38.9]}
39... Re5 {[%clk 0:00:12.3]} 40. g4 {[%clk 0:00:36.1]} 40... Ng6+ {[%clk
0:00:12.1]} 41. Kg3 {[%clk 0:00:33.1]} 41... Rxe4 {[%clk 0:00:10.7]} 42. Rxf7
{[%clk 0:00:33.1]} 42... Rxg4+ {[%clk 0:00:08.6]} 43. Kxg4 {[%clk 0:00:27.7]}
43... Ne5+ {[%clk 0:00:08.4]} 44. Kf5 {[%clk 0:00:27.6]} 44... Nxf7 {[%clk
0:00:09]} 45. h5 {[%clk 0:00:20.5]} 45... Kxd5 {[%clk 0:00:06.8]} 46. Kf6 {[%clk
0:00:20.9]} 46... Nh8 {[%clk 0:00:06.2]} 47. Kg7 {[%clk 0:00:20.5]} 47... Ke6
{[%clk 0:00:04.2]} 48. Kxh8 {[%clk 0:00:18.5]} 48... Kf7 {[%clk 0:00:04.7]} 49.
a4 {[%clk 0:00:17.6]} 49... c4 {[%clk 0:00:05.2]} 50. a5 {[%clk 0:00:18]} 50...
c3 {[%clk 0:00:05.4]} 51. axb6 {[%clk 0:00:18.4]} 51... axb6 {[%clk 0:00:02.1]}
52. h6 {[%clk 0:00:15.4]} 1-0

[Event "Early-Titled-Tuesday-Blitz-April-02-2024"]
[Site "Chess.com"]
[Date "2024.04.02"]
[Round "7"]
[White "smotherhubbard"]
[Black "Itay121"]
[Result "1-0"]
[WhiteElo "2371"]
[BlackElo "2516"]
[TimeControl "180+1"]
[EndTime "9:18:09 PDT"]
[Termination "smotherhubbard won by checkmate"]

1. d4 {[%clk 0:03:00.9]} 1... Nf6 {[%clk 0:02:59]} 2. c4 {[%clk 0:02:59.6]} 2...
e6 {[%clk 0:02:56.2]} 3. Nf3 {[%clk 0:02:58.5]} 3... b6 {[%clk 0:02:53.2]} 4. a3
{[%clk 0:02:59]} 4... Bb7 {[%clk 0:02:53.1]} 5. Nc3 {[%clk 0:02:57.7]} 5... g6
{[%clk 0:02:50.9]} 6. Qc2 {[%clk 0:02:49]} 6... Bg7 {[%clk 0:02:49.9]} 7. e4
{[%clk 0:02:49]} 7... d6 {[%clk 0:02:49.3]} 8. Bd3 {[%clk 0:02:46.5]} 8... O-O
{[%clk 0:02:49.3]} 9. h4 {[%clk 0:02:45.5]} 9... c5 {[%clk 0:02:46.5]} 10. d5
{[%clk 0:02:44.3]} 10... exd5 {[%clk 0:02:40.7]} 11. cxd5 {[%clk 0:02:41.2]}
11... Re8 {[%clk 0:02:39.4]} 12. h5 {[%clk 0:02:36.5]} 12... Nxd5 {[%clk
0:02:29]} 13. hxg6 {[%clk 0:02:24.3]} 13... hxg6 {[%clk 0:02:21.6]} 14. Bg5
{[%clk 0:02:21.3]} 14... Qd7 {[%clk 0:02:05.6]} 15. Bb5 {[%clk 0:02:06.3]} 15...
Rxe4+ {[%clk 0:01:30.1]} 16. Nxe4 {[%clk 0:01:16.8]} 16... Qxb5 {[%clk
0:01:28.4]} 17. Nxd6 {[%clk 0:01:16.6]} 17... Qxb2 {[%clk 0:01:21.2]} 18. Qxb2
{[%clk 0:01:06.3]} 18... Bxb2 {[%clk 0:01:22.1]} 19. Rd1 {[%clk 0:00:59.7]}
19... Bc6 {[%clk 0:01:08.6]} 20. Nc4 {[%clk 0:00:44.5]} 20... Bc3+ {[%clk
0:01:05.9]} 21. Kf1 {[%clk 0:00:44.5]} 21... Bb5 {[%clk 0:00:59.7]} 22. Nd2
{[%clk 0:00:25]} 22... Bxd2 {[%clk 0:00:57.6]} 23. Rxd2 {[%clk 0:00:25]} 23...
Bxc4+ {[%clk 0:00:57.6]} 24. Kg1 {[%clk 0:00:25.6]} 24... Nc6 {[%clk 0:00:56.8]}
25. Rxd5 {[%clk 0:00:25]} 25... f6 {[%clk 0:00:51]} 26. Rd6 {[%clk 0:00:22.4]}
26... fxg5 {[%clk 0:00:43.4]} 27. Rxg6+ {[%clk 0:00:22]} 27... Kf7 {[%clk
0:00:43.4]} 28. Rxc6 {[%clk 0:00:22.4]} 28... Rd8 {[%clk 0:00:39.3]} 29. Rh7+
{[%clk 0:00:18.5]} 29... Kg8 {[%clk 0:00:39.3]} 30. Rxa7 {[%clk 0:00:16.8]}
30... Rd1+ {[%clk 0:00:37.5]} 31. Kh2 {[%clk 0:00:16.7]} 31... Bf7 {[%clk
0:00:35.5]} 32. Rcc7 {[%clk 0:00:14.4]} 32... Be8 {[%clk 0:00:33.8]} 33. Re7
{[%clk 0:00:09.8]} 33... Kf8 {[%clk 0:00:33.4]} 34. Rh7 {[%clk 0:00:09.7]} 34...
Kg8 {[%clk 0:00:31.9]} 35. Rag7+ {[%clk 0:00:08.5]} 35... Kf8 {[%clk 0:00:32.4]}
36. Rxg5 {[%clk 0:00:09.1]} 36... c4 {[%clk 0:00:30.2]} 37. Rh8+ {[%clk
0:00:04.6]} 37... Ke7 {[%clk 0:00:30.4]} 38. Rg7+ {[%clk 0:00:04.2]} 38... Kf6
{[%clk 0:00:29.1]} 39. Rb7 {[%clk 0:00:02.6]} 39... Bf7 {[%clk 0:00:24.3]} 40.
Rh6+ {[%clk 0:00:02.5]} 40... Kg7 {[%clk 0:00:25.2]} 41. Rhxb6 {[%clk
0:00:02.6]} 41... c3 {[%clk 0:00:25.4]} 42. Rc6 {[%clk 0:00:03.2]} 42... Rd2
{[%clk 0:00:20.9]} 43. Rcc7 {[%clk 0:00:03.8]} 43... c2 {[%clk 0:00:20.2]} 44.
Rxf7+ {[%clk 0:00:03.6]} 44... Kg6 {[%clk 0:00:20.9]} 45. Rfc7 {[%clk
0:00:04.1]} 45... Rxf2 {[%clk 0:00:20.9]} 46. Kg3 {[%clk 0:00:05]} 46... Rd2
{[%clk 0:00:19.9]} 47. Rc6+ {[%clk 0:00:05.1]} 47... Kf5 {[%clk 0:00:20.2]} 48.
Rb5+ {[%clk 0:00:05.5]} 48... Ke4 {[%clk 0:00:20.8]} 49. Rc4+ {[%clk 0:00:05.7]}
49... Kd3 {[%clk 0:00:21.2]} 50. Rcc5 {[%clk 0:00:05.6]} 50... Ke2 {[%clk
0:00:21.1]} 51. Rb3 {[%clk 0:00:05.1]} 51... Kd1 {[%clk 0:00:19.3]} 52. Rbc3
{[%clk 0:00:05.3]} 52... Kc1 {[%clk 0:00:15.8]} 53. Rxc2+ {[%clk 0:00:05.4]}
53... Rxc2 {[%clk 0:00:15.7]} 54. Rxc2+ {[%clk 0:00:06.3]} 54... Kxc2 {[%clk
0:00:16.6]} 55. a4 {[%clk 0:00:06.6]} 55... Kc3 {[%clk 0:00:16.6]} 56. a5 {[%clk
0:00:07.3]} 56... Kc4 {[%clk 0:00:17.5]} 57. a6 {[%clk 0:00:07.9]} 57... Kc5
{[%clk 0:00:18.4]} 58. a7 {[%clk 0:00:08.6]} 58... Kc6 {[%clk 0:00:19.3]} 59.
a8=Q+ {[%clk 0:00:08.6]} 59... Kd7 {[%clk 0:00:20.2]} 60. Qd5+ {[%clk
0:00:08.9]} 60... Ke7 {[%clk 0:00:19.9]} 61. Kf4 {[%clk 0:00:09.8]} 61... Kf6
{[%clk 0:00:20.8]} 62. Qd6+ {[%clk 0:00:09.9]} 62... Kg7 {[%clk 0:00:21.7]} 63.
Kf5 {[%clk 0:00:09.8]} 63... Kh7 {[%clk 0:00:21.9]} 64. Qd7+ {[%clk 0:00:09.6]}
64... Kh6 {[%clk 0:00:22.8]} 65. Qe7 {[%clk 0:00:09.5]} 65... Kh5 {[%clk
0:00:23.4]} 66. Qg5# {[%clk 0:00:10.1]} 1-0

[Event "Early-Titled-Tuesday-Blitz-April-02-2024"]
[Site "Chess.com"]
[Date "2024.04.02"]
[Round "7"]
[White "Harry_Rakkel"]
[Black "SuperJesus88"]
[Result "1-0"]
[WhiteElo "2732"]
[BlackElo "2542"]
[TimeControl "180+1"]
[EndTime "9:18:14 PDT"]
[Termination "Harry_Rakkel won by resignation"]

1. c4 {[%clk 0:03:00.9]} 1... d6 {[%clk 0:02:57.7]} 2. Nc3 {[%clk 0:03:00]} 2...
Nf6 {[%clk 0:02:58.3]} 3. e4 {[%clk 0:02:57.9]} 3... e5 {[%clk 0:02:57.7]} 4.
Nge2 {[%clk 0:02:56.9]} 4... c5 {[%clk 0:02:55.5]} 5. d3 {[%clk 0:02:56.4]} 5...
Nc6 {[%clk 0:02:56.1]} 6. h3 {[%clk 0:02:56]} 6... Be7 {[%clk 0:02:54.9]} 7. g4
{[%clk 0:02:53.4]} 7... Nd4 {[%clk 0:02:54.7]} 8. Bg2 {[%clk 0:02:52.4]} 8... h5
{[%clk 0:02:53.1]} 9. g5 {[%clk 0:02:51.5]} 9... Nh7 {[%clk 0:02:53.5]} 10. h4
{[%clk 0:02:50.7]} 10... Nf8 {[%clk 0:02:53.7]} 11. Nxd4 {[%clk 0:02:45.6]}
11... cxd4 {[%clk 0:02:50.9]} 12. Nd5 {[%clk 0:02:45.4]} 12... g6 {[%clk
0:02:43.6]} 13. O-O {[%clk 0:02:43.9]} 13... Ne6 {[%clk 0:02:43.4]} 14. f4
{[%clk 0:02:42.6]} 14... exf4 {[%clk 0:02:41.7]} 15. Bxf4 {[%clk 0:02:40.5]}
15... Nxf4 {[%clk 0:02:40.6]} 16. Nxf4 {[%clk 0:02:37.8]} 16... O-O {[%clk
0:02:34.6]} 17. Qf3 {[%clk 0:02:35.2]} 17... Be6 {[%clk 0:02:30.1]} 18. Bh3
{[%clk 0:02:34.4]} 18... Qd7 {[%clk 0:02:11.3]} 19. Kg2 {[%clk 0:02:31.8]} 19...
Rac8 {[%clk 0:02:03.1]} 20. Rf2 {[%clk 0:02:29.3]} 20... Bxh3+ {[%clk
0:01:58.6]} 21. Qxh3 {[%clk 0:02:28.2]} 21... Qxh3+ {[%clk 0:01:58.4]} 22. Kxh3
{[%clk 0:02:27.4]} 22... Bd8 {[%clk 0:01:53.7]} 23. Raf1 {[%clk 0:02:24.1]}
23... Be7 {[%clk 0:01:05.7]} 24. a4 {[%clk 0:02:16.9]} 24... Rce8 {[%clk
0:01:02.3]} 25. Nd5 {[%clk 0:02:01.9]} 25... Bd8 {[%clk 0:01:00.3]} 26. b4
{[%clk 0:01:59.9]} 26... Re6 {[%clk 0:00:56.2]} 27. a5 {[%clk 0:01:45.6]} 27...
a6 {[%clk 0:00:52.9]} 28. Nf4 {[%clk 0:01:42]} 28... Ree8 {[%clk 0:00:52.5]} 29.
Ne2 {[%clk 0:01:41.8]} 29... f6 {[%clk 0:00:50.6]} 30. Nxd4 {[%clk 0:01:37]}
30... fxg5 {[%clk 0:00:45.4]} 31. Rxf8+ {[%clk 0:01:32.9]} 31... Rxf8 {[%clk
0:00:45.9]} 32. Rxf8+ {[%clk 0:01:33.2]} 32... Kxf8 {[%clk 0:00:46.4]} 33. Ne6+
{[%clk 0:01:33]} 33... Ke8 {[%clk 0:00:35.9]} 34. hxg5 {[%clk 0:01:25.5]} 34...
Kd7 {[%clk 0:00:35.2]} 35. Nxd8 {[%clk 0:01:15]} 35... Kxd8 {[%clk 0:00:35.2]}
36. d4 {[%clk 0:01:11.5]} 36... Kd7 {[%clk 0:00:35.6]} 37. Kg3 {[%clk
0:01:11.4]} 37... Kc6 {[%clk 0:00:35.7]} 38. Kf4 {[%clk 0:01:11.1]} 38... Kd7
{[%clk 0:00:36.1]} 39. b5 {[%clk 0:01:10.3]} 39... Ke6 {[%clk 0:00:33.2]} 40. b6
{[%clk 0:01:04.9]} 40... Kd7 {[%clk 0:00:32.8]} 41. d5 {[%clk 0:00:57.4]} 41...
Ke7 {[%clk 0:00:31.8]} 42. e5 {[%clk 0:00:55.8]} 42... Kd7 {[%clk 0:00:28.8]}
43. Ke4 {[%clk 0:00:47.3]} 43... Ke7 {[%clk 0:00:27.2]} 44. e6 {[%clk
0:00:45.2]} 44... Kd8 {[%clk 0:00:24]} 45. c5 {[%clk 0:00:45.3]} 45... dxc5
{[%clk 0:00:24.1]} 46. d6 {[%clk 0:00:45.4]} 46... c4 {[%clk 0:00:22.9]} 47. e7+
{[%clk 0:00:37.9]} 47... Kd7 {[%clk 0:00:21.3]} 48. Ke5 {[%clk 0:00:37.9]} 48...
c3 {[%clk 0:00:21.8]} 49. Kf6 {[%clk 0:00:38.1]} 49... c2 {[%clk 0:00:13.5]} 50.
Kf7 {[%clk 0:00:38.1]} 50... c1=Q {[%clk 0:00:12]} 51. e8=Q+ {[%clk 0:00:38.3]}
51... Kxd6 {[%clk 0:00:12.9]} 52. Qe7+ {[%clk 0:00:33.4]} 52... Kd5 {[%clk
0:00:12.8]} 53. Qxb7+ {[%clk 0:00:33.1]} 53... Kd4 {[%clk 0:00:08.5]} 54. Qd7+
{[%clk 0:00:32]} 54... Ke5 {[%clk 0:00:07.6]} 55. Qe7+ {[%clk 0:00:30.2]} 55...
Kd5 {[%clk 0:00:07.6]} 56. Qe6+ {[%clk 0:00:24]} 56... Kd4 {[%clk 0:00:07]} 57.
Qxg6 {[%clk 0:00:22.2]} 57... Qc4+ {[%clk 0:00:01.8]} 58. Qe6 {[%clk 0:00:21.7]}
58... Qf1+ {[%clk 0:00:01.8]} 59. Qf6+ {[%clk 0:00:21.7]} 59... Qxf6+ {[%clk
0:00:02.5]} 60. gxf6 {[%clk 0:00:21.9]} 60... h4 {[%clk 0:00:03.4]} 61. b7
{[%clk 0:00:21.9]} 61... h3 {[%clk 0:00:04.3]} 62. b8=Q {[%clk 0:00:22]} 62...
h2 {[%clk 0:00:05.2]} 63. Qxh2 {[%clk 0:00:21.7]} 1-0

[Event "Early-Titled-Tuesday-Blitz-April-02-2024"]
[Site "Chess.com"]
[Date "2024.04.02"]
[Round "7"]
[White "VeraVujovic"]
[Black "Lucky_Puncher"]
[Result "1-0"]
[WhiteElo "2247"]
[BlackElo "2482"]
[TimeControl "180+1"]
[EndTime "9:18:16 PDT"]
[Termination "VeraVujovic won by resignation"]

1. e4 {[%clk 0:03:00.9]} 1... c5 {[%clk 0:03:00.4]} 2. Nf3 {[%clk 0:03:00.2]}
2... d6 {[%clk 0:03:01]} 3. d4 {[%clk 0:03:00]} 3... cxd4 {[%clk 0:03:01.9]} 4.
Nxd4 {[%clk 0:03:00.3]} 4... Nf6 {[%clk 0:03:02.6]} 5. Nc3 {[%clk 0:03:00.9]}
5... a6 {[%clk 0:03:03.1]} 6. Be3 {[%clk 0:03:00.4]} 6... e5 {[%clk 0:03:03.3]}
7. Nf3 {[%clk 0:03:01.2]} 7... h6 {[%clk 0:03:02.2]} 8. Bc4 {[%clk 0:03:01.2]}
8... b5 {[%clk 0:02:50.3]} 9. Bd5 {[%clk 0:02:58]} 9... Nxd5 {[%clk 0:02:27.3]}
10. Qxd5 {[%clk 0:02:56.5]} 10... Qc7 {[%clk 0:02:19.9]} 11. Qxa8 {[%clk
0:02:34.1]} 11... Bb7 {[%clk 0:02:18]} 12. Qa7 {[%clk 0:01:55.1]} 12... Nd7
{[%clk 0:02:06.3]} 13. Nd5 {[%clk 0:01:29.1]} 13... Qc6 {[%clk 0:02:06.3]} 14.
Nb6 {[%clk 0:01:21]} 14... Qxe4 {[%clk 0:01:50.5]} 15. Nxd7 {[%clk 0:01:15.9]}
15... Kxd7 {[%clk 0:01:51.4]} 16. O-O-O {[%clk 0:01:03.1]} 16... Be7 {[%clk
0:01:48]} 17. Nxe5+ {[%clk 0:01:00.2]} 17... Ke6 {[%clk 0:01:47]} 18. Nf3 {[%clk
0:00:51.8]} 18... Rc8 {[%clk 0:01:43.6]} 19. Nd4+ {[%clk 0:00:38.1]} 19... Kf6
{[%clk 0:01:42.9]} 20. Rhe1 {[%clk 0:00:30.9]} 20... Kg6 {[%clk 0:01:40.6]} 21.
f3 {[%clk 0:00:25.9]} 21... Qd5 {[%clk 0:01:36.2]} 22. Ne2 {[%clk 0:00:18.8]}
22... Qc4 {[%clk 0:01:30.3]} 23. Nc3 {[%clk 0:00:18.5]} 23... Rc7 {[%clk
0:01:16.8]} 24. Qd4 {[%clk 0:00:17.9]} 24... Qe6 {[%clk 0:01:11.9]} 25. Bf4
{[%clk 0:00:16.7]} 25... Qf5 {[%clk 0:01:10.3]} 26. Bxd6 {[%clk 0:00:14.7]}
26... Bg5+ {[%clk 0:01:10.5]} 27. Kb1 {[%clk 0:00:14.4]} 27... Bf6 {[%clk
0:01:10.4]} 28. Qd3 {[%clk 0:00:14]} 28... Rc4 {[%clk 0:01:01]} 29. Qxf5+ {[%clk
0:00:13.7]} 29... Kxf5 {[%clk 0:01:01.9]} 30. Bg3 {[%clk 0:00:11.5]} 30... Rb4
{[%clk 0:00:56.5]} 31. Ka1 {[%clk 0:00:08.7]} 31... h5 {[%clk 0:00:52.8]} 32.
Rd6 {[%clk 0:00:08.5]} 32... h4 {[%clk 0:00:52]} 33. Bf2 {[%clk 0:00:09]} 33...
Rc4 {[%clk 0:00:48.1]} 34. Rb6 {[%clk 0:00:08.7]} 34... Bc8 {[%clk 0:00:46.9]}
35. g3 {[%clk 0:00:06.8]} 35... Be6 {[%clk 0:00:42.7]} 36. gxh4 {[%clk
0:00:05.6]} 36... b4 {[%clk 0:00:42.8]} 37. Ne4 {[%clk 0:00:04.7]} 37... Rxc2
{[%clk 0:00:39.6]} 38. Nxf6 {[%clk 0:00:04.8]} 38... Rxf2 {[%clk 0:00:38]} 39.
Ne4 {[%clk 0:00:03.6]} 39... Rxf3 {[%clk 0:00:32.9]} 40. Ng5 {[%clk 0:00:03.7]}
40... Rf2 {[%clk 0:00:29.6]} 41. Nxe6 {[%clk 0:00:03.7]} 41... fxe6 {[%clk
0:00:30.5]} 42. Rbxe6 {[%clk 0:00:03.6]} 42... Rxh2 {[%clk 0:00:30.8]} 43. R6e5+
{[%clk 0:00:03.4]} 43... Kf6 {[%clk 0:00:31]} 44. R5e4 {[%clk 0:00:03.5]} 44...
a5 {[%clk 0:00:30.4]} 45. Rf4+ {[%clk 0:00:03.9]} 45... Kg6 {[%clk 0:00:30.2]}
46. Rg1+ {[%clk 0:00:03.8]} 46... Kh7 {[%clk 0:00:29.7]} 47. Rfg4 {[%clk
0:00:04.4]} 47... Kh6 {[%clk 0:00:26.7]} 48. Rg6+ {[%clk 0:00:03.6]} 48... Kh5
{[%clk 0:00:25.6]} 49. Rxg7 {[%clk 0:00:04]} 49... Kh6 {[%clk 0:00:23.9]} 50.
R7g5 {[%clk 0:00:03.2]} 50... a4 {[%clk 0:00:21.7]} 51. Ra5 {[%clk 0:00:02.8]}
51... b3 {[%clk 0:00:20.4]} 52. axb3 {[%clk 0:00:03.7]} 52... axb3 {[%clk
0:00:20.4]} 53. Rb5 {[%clk 0:00:04.4]} 53... Rh3 {[%clk 0:00:20.9]} 54. Rb4
{[%clk 0:00:03.9]} 54... Kh5 {[%clk 0:00:20.9]} 55. Kb1 {[%clk 0:00:04.2]} 55...
Kh6 {[%clk 0:00:21.2]} 56. Kc1 {[%clk 0:00:04.5]} 56... Rh1 {[%clk 0:00:20.6]}
57. Rxh1 {[%clk 0:00:04.1]} 1-0

[Event "Early-Titled-Tuesday-Blitz-April-02-2024"]
[Site "Chess.com"]
[Date "2024.04.02"]
[Round "7"]
[White "secrethawk1"]
[Black "vladgoncharov"]
[Result "0-1"]
[WhiteElo "2424"]
[BlackElo "2580"]
[TimeControl "180+1"]
[EndTime "9:18:17 PDT"]
[Termination "vladgoncharov won on time"]

1. e4 {[%clk 0:03:00.9]} 1... e6 {[%clk 0:02:58]} 2. d4 {[%clk 0:02:59.8]} 2...
d5 {[%clk 0:02:51.9]} 3. Nc3 {[%clk 0:02:58.8]} 3... Nf6 {[%clk 0:02:50]} 4. Bg5
{[%clk 0:02:57.5]} 4... Be7 {[%clk 0:02:49.1]} 5. e5 {[%clk 0:02:56.7]} 5...
Nfd7 {[%clk 0:02:48.6]} 6. Bxe7 {[%clk 0:02:57.6]} 6... Qxe7 {[%clk 0:02:48.5]}
7. f4 {[%clk 0:02:55.7]} 7... a6 {[%clk 0:02:45]} 8. Nf3 {[%clk 0:02:54.8]} 8...
c5 {[%clk 0:02:44.7]} 9. dxc5 {[%clk 0:02:53.8]} 9... Qxc5 {[%clk 0:02:40.8]}
10. Qd2 {[%clk 0:02:51.4]} 10... b5 {[%clk 0:02:39.4]} 11. Bd3 {[%clk
0:02:50.9]} 11... Nc6 {[%clk 0:02:33.8]} 12. Ne2 {[%clk 0:02:48.1]} 12... a5
{[%clk 0:02:22]} 13. c3 {[%clk 0:02:43.1]} 13... b4 {[%clk 0:02:12.2]} 14. Ned4
{[%clk 0:02:40.4]} 14... bxc3 {[%clk 0:02:07.8]} 15. bxc3 {[%clk 0:02:37.6]}
15... Nxd4 {[%clk 0:01:55.1]} 16. cxd4 {[%clk 0:02:34.7]} 16... Qb4 {[%clk
0:01:25.7]} 17. O-O {[%clk 0:02:29.4]} 17... Qxd2 {[%clk 0:01:24.4]} 18. Nxd2
{[%clk 0:02:25.9]} 18... Ba6 {[%clk 0:01:23]} 19. Bxa6 {[%clk 0:02:22.7]} 19...
Rxa6 {[%clk 0:01:22.5]} 20. Rfc1 {[%clk 0:02:21.4]} 20... Ke7 {[%clk 0:01:18.7]}
21. Rab1 {[%clk 0:02:19.3]} 21... Rb8 {[%clk 0:01:10.3]} 22. Rxb8 {[%clk
0:02:14.7]} 22... Nxb8 {[%clk 0:01:09.7]} 23. Rc7+ {[%clk 0:02:13]} 23... Nd7
{[%clk 0:01:09.5]} 24. Nb3 {[%clk 0:02:12.6]} 24... Ra8 {[%clk 0:00:55.3]} 25.
Nc5 {[%clk 0:02:09.8]} 25... Rd8 {[%clk 0:00:55.2]} 26. Ra7 {[%clk 0:02:01.1]}
26... Ke8 {[%clk 0:00:54.4]} 27. Rxa5 {[%clk 0:01:21.5]} 27... Nxc5 {[%clk
0:00:52.4]} 28. Rxc5 {[%clk 0:01:21.6]} 28... Ra8 {[%clk 0:00:52]} 29. Rc2
{[%clk 0:01:19.6]} 29... Ra4 {[%clk 0:00:51.3]} 30. Rd2 {[%clk 0:01:19.8]} 30...
f6 {[%clk 0:00:43.8]} 31. Kf2 {[%clk 0:01:18.3]} 31... fxe5 {[%clk 0:00:43.7]}
32. fxe5 {[%clk 0:01:18.2]} 32... g5 {[%clk 0:00:43.6]} 33. Ke3 {[%clk
0:01:13.8]} 33... Ra3+ {[%clk 0:00:42.4]} 34. Ke2 {[%clk 0:01:13.7]} 34... Kf7
{[%clk 0:00:38.4]} 35. Kd1 {[%clk 0:01:10.8]} 35... Kg6 {[%clk 0:00:36.1]} 36.
Kc1 {[%clk 0:01:04.9]} 36... g4 {[%clk 0:00:33.8]} 37. Kb2 {[%clk 0:01:02.3]}
37... Ra4 {[%clk 0:00:29.2]} 38. Kb3 {[%clk 0:01:01.6]} 38... Rc4 {[%clk
0:00:29.1]} 39. a4 {[%clk 0:01:00.8]} 39... Kf5 {[%clk 0:00:29]} 40. a5 {[%clk
0:00:58.8]} 40... Ke4 {[%clk 0:00:29]} 41. a6 {[%clk 0:00:54.3]} 41... Rc6
{[%clk 0:00:20.1]} 42. Ra2 {[%clk 0:00:52.1]} 42... Rb6+ {[%clk 0:00:20.2]} 43.
Kc3 {[%clk 0:00:51.1]} 43... Rc6+ {[%clk 0:00:20.5]} 44. Kd2 {[%clk 0:00:50.4]}
44... Rc8 {[%clk 0:00:20.7]} 45. a7 {[%clk 0:00:49]} 45... Ra8 {[%clk
0:00:21.4]} 46. Ra4 {[%clk 0:00:44.7]} 46... h5 {[%clk 0:00:21.5]} 47. Kc3
{[%clk 0:00:34.8]} 47... h4 {[%clk 0:00:21.4]} 48. Ra2 {[%clk 0:00:30.3]} 48...
Ke3 {[%clk 0:00:20.3]} 49. Kb4 {[%clk 0:00:03.3]} 49... Kxd4 {[%clk 0:00:19.9]}
50. Kb5 {[%clk 0:00:03.4]} 50... Kxe5 {[%clk 0:00:20.2]} 51. Kb6 {[%clk
0:00:03.2]} 51... d4 {[%clk 0:00:20.5]} 52. Kb7 {[%clk 0:00:01.8]} 52... Rh8
{[%clk 0:00:18.8]} 53. a8=Q {[%clk 0:00:01.8]} 53... Rxa8 {[%clk 0:00:18]} 54.
Rxa8 {[%clk 0:00:01.7]} 54... d3 {[%clk 0:00:18.2]} 55. Rd8 {[%clk 0:00:02]}
55... Ke4 {[%clk 0:00:18.7]} 56. Kc6 {[%clk 0:00:02]} 56... Ke3 {[%clk
0:00:17.9]} 57. Kd6 {[%clk 0:00:01.4]} 57... g3 {[%clk 0:00:16.5]} 0-1